bitfinex/quotes_SOLUSD_20240705
["timestamp","ask_amount","ask_price","bid_price","bid_amount"]
[1720150862035,106.90965829,123.83,123.72,20.0]
[1720150862328,8.0802,123.76,123.72,20.0]
[1720150862534,8.079,123.78,123.72,20.0]
[1720150862944,8.0795,123.77,123.72,20.0]
[1720150863149,55.21196908,123.79,123.71,0.1]
[1720150863364,8.0827,123.72,123.71,0.1]
[1720150863855,0.80768921,123.72,123.71,0.1]
[1720150864232,70.33956908,123.85,123.71,0.1]
[1720150864446,8.0777,123.8,123.71,0.1]
[1720150864669,8.0789,123.78,123.71,0.1]
[1720150864849,59.23654189,123.84,123.71,0.1]
[1720150864850,55.21196908,123.8,123.71,0.1]
[1720150865043,55.21196908,123.77,123.71,0.1]
[1720150865250,8.0818,123.74,123.71,0.1]
[1720150865473,8.0808,123.75,123.71,0.1]
[1720150865870,8.0815,123.74,123.71,0.1]
[1720150866042,55.21196908,123.79,123.71,0.1]
[1720150866370,50.89,123.8,123.71,0.1]
[1720150866588,8.078,123.8,123.71,0.1]
[1720150866746,8.0795,123.77,123.71,0.1]
[1720150866943,8.0801,123.76,123.71,0.1]
[1720150867149,8.0794,123.78,123.71,0.1]
[1720150867448,8.0788,123.78,123.71,0.1]
[1720150867748,55.21196908,123.81,123.71,0.1]
[1720150868166,8.0808,123.75,123.71,0.1]
[1720150868473,55.21196908,123.79,123.71,0.1]
[1720150868766,8.0795,123.77,123.71,0.1]
[1720150868973,0.17,123.78,123.71,0.1]
[1720150869474,63.28816908,123.82,123.72,8.7477]
[1720150869766,55.21196908,123.86,123.74,6.4276]
[1720150870069,16.0221,123.9,123.75,20.0]
[1720150870371,16.0221,123.9,123.76,0.17]
[1720150870372,55.21196908,123.9,123.76,0.17]
[1720150870672,8.35016808,123.89,123.76,0.17]
[1720150871377,55.21196908,123.88,123.76,0.17]
[1720150871556,8.0769,123.81,123.75,20.0]
[1720150871751,55.21196908,123.82,123.69,6.3398347]
[1720150871952,75.40356908,123.82,123.71,0.1]
[1720150872260,16.5438,123.83,123.71,0.1]
[1720150872261,8.0777,123.8,123.71,0.1]
[1720150872467,55.21196908,123.82,123.71,0.1]
[1720150872683,0.17,123.81,123.71,0.1]
[1720150872848,8.081,123.75,123.71,0.1]
[1720150873046,8.2517,123.74,123.71,0.1]
[1720150873256,0.17,123.74,123.71,0.1]
[1720150873463,8.0827,123.72,123.71,0.1]
[1720150873667,8.2527,123.72,123.71,0.1]
[1720150876204,0.17,123.72,123.71,0.1]
[1720150876370,8.0815,123.74,123.71,0.1]
[1720150876570,55.21196908,123.79,123.71,0.1]
[1720150876785,81.51226908,123.81,123.71,0.1]
[1720150877294,16.5438,123.83,123.71,8.8477]
[1720150877295,8.0756,123.83,123.71,8.8477]
[1720150877485,75.39626908,123.86,123.72,20.17]
[1720150877685,8.0788,123.79,123.72,20.0]
[1720150877886,8.0796,123.77,123.72,20.0]
[1720150878267,8.0801,123.76,123.71,0.1]
[1720150878588,55.21196908,123.75,123.71,0.1]
[1720150878777,8.0827,123.72,123.71,0.1]
[1720150879094,0.17,123.72,123.71,0.1]
[1720150879335,8.2527,123.72,123.71,0.1]
[1720150879589,0.17,123.72,123.71,0.1]
[1720150880493,8.2527,123.72,123.71,0.1]
[1720150881074,0.17,123.72,123.71,0.1]
[1720150881494,8.2527,123.72,123.71,0.1]
[1720150881969,0.17,123.72,123.71,0.1]
[1720150882370,8.35435383,123.74,123.71,0.1]
[1720150882669,8.0802,123.76,123.71,0.1]
[1720150882872,63.56237403,123.77,123.71,0.1]
[1720150883102,8.0822,123.73,123.71,0.1]
[1720150883306,8.0827,123.72,123.71,0.1]
[1720150883815,8.8910421,123.72,123.71,0.1]
[1720150884325,9.0610421,123.72,123.71,0.1]
[1720150887694,0.8083421,123.72,123.71,0.1]
[1720150888195,64.10301118,123.72,123.71,0.1]
[1720150889015,63.29596908,123.7,123.69,0.2149347]
[1720150889326,63.46596908,123.7,123.69,0.2149347]
[1720150889523,55.21196908,123.65,123.61,0.1]
[1720150889687,8.0893,123.62,123.61,0.1]
[1720150890005,8.2593,123.62,123.61,0.1]
[1720150891198,62.26,123.66,123.61,0.1]
[1720150891512,55.21196908,123.69,123.61,0.1]
[1720150891692,8.0893,123.62,123.61,0.1]
[1720150892919,8.0908,123.6,123.51,0.1]
[1720150893107,8.0953,123.53,123.51,0.1]
[1720150893432,0.17,123.52,123.51,0.1]
[1720150893989,55.21196908,123.58,123.51,0.1]
[1720150894212,0.17,123.57,123.51,0.1]
[1720150894520,148.11266908,123.61,123.51,0.1]
[1720150894701,8.0927,123.57,123.51,0.1]
[1720150894905,8.0946,123.54,123.51,0.1]
[1720150895206,63.30726908,123.53,123.51,0.1]
[1720150895530,71.75053748,123.53,123.51,0.1]
[1720150895827,8.098,123.49,123.46,0.04799471]
[1720150896024,0.17,123.48,123.46,0.04799471]
[1720150896232,0.17,123.52,123.46,0.04799471]
[1720150896403,8.0965,123.51,123.46,0.04799471]
[1720150896598,8.0947,123.54,123.46,0.04799471]
[1720150896917,55.21196908,123.56,123.46,0.04799471]
[1720150897120,8.44660174,123.55,123.46,0.04799471]
[1720150897595,16.54070174,123.55,123.46,0.04799471]
[1720150897795,55.21196908,123.54,123.46,0.04799471]
[1720150898104,8.0991,123.47,123.46,0.04799471]
[1720150898918,8.2691,123.47,123.46,0.04799471]
[1720150899713,55.21196908,123.54,123.46,0.04799471]
[1720150900037,8.0964,123.52,123.46,0.04799471]
[1720150900316,55.21196908,123.53,123.46,0.04799471]
[1720150900521,8.44660174,123.55,123.46,0.04799471]
[1720150900923,117.47196908,123.57,123.46,20.04799471]
[1720150901099,8.094,123.55,123.46,20.04799471]
[1720150901295,8.44523654,123.56,123.46,20.04799471]
[1720150901904,55.21196908,123.55,123.46,0.04799471]
[1720150902106,8.0958,123.52,123.46,0.04799471]
[1720150902311,8.0971,123.51,123.46,0.04799471]
[1720150902500,55.21196908,123.52,123.46,0.04799471]
[1720150902706,8.0985,123.48,123.46,0.04799471]
[1720150902897,0.17,123.47,123.46,0.04799471]
[1720150903308,8.2691,123.47,123.46,0.04799471]
[1720150903821,9.0774421,123.47,123.46,0.04799471]
[1720150905024,0.9783421,123.47,123.46,0.04799471]
[1720150905220,0.8083421,123.47,123.46,0.04799471]
[1720150906109,55.21196908,123.55,123.46,20.04799471]
[1720150906314,8.44523654,123.56,123.46,20.04799471]
[1720150906512,55.21196908,123.54,123.46,0.04799471]
[1720150906812,63.65720562,123.56,123.46,0.04799471]
[1720150907004,8.0959,123.52,123.46,0.04799471]
[1720150907216,55.21196908,123.54,123.46,0.04799471]
[1720150907421,8.0959,123.52,123.46,0.04799471]
[1720150907623,61.62426908,123.52,123.46,0.04799471]
[1720150907928,55.21196908,123.47,123.43,0.2149347]
[1720150908133,8.1011,123.44,123.43,0.2149347]
[1720150908431,8.1006,123.45,123.43,0.2149347]
[1720150908609,8.2711,123.44,123.43,0.2149347]
[1720150908806,0.17,123.44,123.43,0.2149347]
[1720150909011,8.2711,123.44,123.43,0.2149347]
[1720150909221,0.17,123.44,123.43,0.2149347]
[1720150909421,8.2711,123.44,123.43,0.2149347]
[1720150910425,0.17,123.44,123.43,0.2149347]
[1720150911626,8.2711,123.44,123.43,0.2149347]
[1720150911813,8.45431088,123.45,123.43,0.2149347]
[1720150912015,8.0984,123.49,123.43,0.2149347]
[1720150912210,8.0971,123.51,123.43,0.2149347]
[1720150912429,63.66023352,123.52,123.43,0.2149347]
[1720150912807,55.21196908,123.49,123.43,0.2149347]
[1720150913012,8.1001,123.46,123.43,0.2149347]
[1720150913209,55.21196908,123.49,123.43,0.2149347]
[1720150913413,8.099,123.48,123.43,0.2149347]
[1720150913716,55.21196908,123.51,123.43,0.2149347]
[1720150913910,8.0999,123.46,123.43,0.2149347]
[1720150914112,20.2435,123.5,123.43,0.2149347]
[1720150914344,8.0997,123.46,123.43,0.2149347]
[1720150914525,8.1004,123.45,123.43,0.2149347]
[1720150914717,8.1004,123.46,123.43,0.2149347]
[1720150914908,137.71696908,123.49,123.43,0.2149347]
[1720150914909,8.1011,123.44,123.43,0.2149347]
[1720150915317,0.17,123.44,123.43,0.2149347]
[1720150915516,8.1004,123.45,123.43,0.2149347]
[1720150915751,8.1005,123.45,123.43,0.2149347]
[1720150916216,20.2474,123.48,123.43,0.2149347]
[1720150916420,8.1011,123.44,123.43,0.2149347]
[1720150916620,8.1004,123.45,123.43,0.2149347]
[1720150916851,0.17,123.44,123.43,0.2149347]
[1720150917029,8.2711,123.44,123.43,0.2149347]
[1720150917433,8.2711,123.44,123.41,0.1]
[1720150917434,63.31436908,123.42,123.41,0.1]
[1720150917818,63.48436908,123.42,123.41,0.1]
[1720150918018,8.2724,123.42,123.41,0.1]
[1720150919044,8.1018,123.43,123.41,0.1]
[1720150919246,8.1012,123.44,123.41,0.1]
[1720150919414,55.21196908,123.48,123.41,0.1]
[1720150919746,8.1011,123.44,123.41,0.1]
[1720150920237,8.1024,123.42,123.41,0.1]
[1720150920944,0.17,123.42,123.41,0.1]
[1720150921115,55.21196908,123.5,123.41,0.1]
[1720150921313,8.0967,123.51,123.41,0.1]
[1720150921510,63.66023352,123.52,123.41,20.1]
[1720150921713,16.54436444,123.52,123.41,20.1]
[1720150921909,6.5372,123.57,123.42,0.17]
[1720150921910,55.21196908,123.56,123.42,0.17]
[1720150922144,8.0952,123.53,123.42,0.17]
[1720150922356,8.46069518,123.54,123.42,0.17]
[1720150922638,16.55559518,123.54,123.42,0.17]
[1720150922842,63.67266426,123.54,123.41,20.1]
[1720150923138,55.21196908,123.53,123.41,20.1]
[1720150923444,8.0973,123.5,123.41,20.1]
[1720150923640,8.0979,123.49,123.41,20.1]
[1720150923823,8.0971,123.51,123.41,20.1]
[1720150924228,8.0973,123.5,123.41,20.1]
[1720150924538,0.17,123.5,123.41,0.1]
[1720150924841,8.0998,123.46,123.41,0.1]
[1720150925051,0.17,123.45,123.41,0.1]
[1720150925420,8.0992,123.47,123.41,0.1]
[1720150925634,8.099,123.48,123.41,0.1]
[1720150925946,8.2694,123.47,123.41,0.1]
[1720150926246,8.0999,123.46,123.41,0.1]
[1720150926549,8.1012,123.44,123.41,0.1]
[1720150926760,0.17,123.43,123.41,0.1]
[1720150927718,8.1024,123.42,123.41,0.1]
[1720150927923,0.17,123.42,123.41,0.1]
[1720150928318,8.0999,123.46,123.41,0.1]
[1720150928517,0.17,123.45,123.41,0.1]
[1720150928919,8.0985,123.48,123.41,0.1]
[1720150929136,62.26,123.51,123.41,0.1]
[1720150929364,8.0957,123.53,123.41,0.1]
[1720150929518,63.67266426,123.54,123.42,14.8742]
[1720150929720,8.0966,123.51,123.43,20.0]
[1720150929949,8.0959,123.52,123.43,20.0]
[1720150930154,8.46069518,123.54,123.43,20.0]
[1720150930359,8.0953,123.53,123.44,0.17]
[1720150930526,55.21196908,123.56,123.43,20.0]
[1720150930723,8.097,123.51,123.43,20.0]
[1720150930928,8.0958,123.53,123.43,20.0]
[1720150931127,8.45758604,123.54,123.43,20.0]
[1720150931629,75.44636908,123.56,123.43,28.1012]
[1720150931630,8.0932,123.56,123.43,28.1012]
[1720150931830,55.21196908,123.59,123.44,15.17]
[1720150932017,62.26,123.63,123.49,8.0977]
[1720150932221,8.0888,123.63,123.5,28.267]
[1720150932441,8.0888,123.63,123.51,14.5748]
[1720150932643,8.0893,123.62,123.52,20.17]
[1720150932826,8.0901,123.61,123.52,20.0]
[1720150933018,8.45758068,123.65,123.52,20.0]
[1720150933222,55.21196908,123.68,123.56,8.093]
[1720150933424,8.0849,123.69,123.57,20.0]
[1720150933651,8.0853,123.68,123.57,20.0]
[1720150933850,8.45897552,123.69,123.57,20.0]
[1720150934031,117.47196908,123.72,123.56,20.17]
[1720150934218,117.47196908,123.72,123.57,6.3903]
[1720150934219,125.55526908,123.72,123.57,6.3903]
[1720150934538,8.084,123.7,123.58,28.2618]
[1720150934747,8.084,123.7,123.58,20.17]
[1720150934940,8.46234653,123.71,123.58,20.17]
[1720150935121,8.0853,123.68,123.58,20.17]
[1720150935325,0.17,123.67,123.58,20.0]
[1720150935743,8.46234653,123.71,123.58,20.0]
[1720150936050,8.46234653,123.71,123.59,0.17]
[1720150936251,55.21196908,123.72,123.59,0.17]
[1720150936462,55.21196908,123.72,123.57,6.3903]
[1720150936756,55.21196908,123.65,123.57,6.3903]
[1720150937051,8.0935,123.56,123.52,6.5124]
[1720150937223,117.47196908,123.63,123.52,6.5124]
[1720150937419,8.0919,123.58,123.52,6.5124]
[1720150937621,8.0921,123.58,123.52,6.5124]
[1720150937820,8.095,123.54,123.47,12.65411406]
[1720150938025,0.17,123.55,123.47,6.2374]
[1720150938263,55.38196908,123.57,123.47,6.2374]
[1720150938549,8.0935,123.56,123.47,6.2374]
[1720150938722,0.17,123.55,123.47,6.2374]
[1720150938920,8.0939,123.55,123.47,6.2374]
[1720150939151,8.0959,123.52,123.47,6.2374]
[1720150939385,8.2666,123.51,123.47,6.2374]
[1720150939533,0.17,123.54,123.42,6.2374]
[1720150939739,0.17,123.54,123.43,8.1016]
[1720150939925,0.17,123.54,123.42,14.3391]
[1720150940120,0.17,123.54,123.43,20.2529]
[1720150940337,0.17,123.54,123.42,6.2374]
[1720150940546,8.2641,123.55,123.42,6.2374]
[1720150940743,0.17,123.55,123.43,40.2532]
[1720150941162,8.2644,123.55,123.43,40.2532]
[1720150941454,0.17,123.55,123.43,20.0]
[1720150941638,55.21196908,123.54,123.43,20.0]
[1720150941835,8.096,123.52,123.43,20.0]
[1720150942046,8.0984,123.49,123.42,6.2374]
[1720150942355,0.17,123.51,123.42,6.2374]
[1720150942530,0.17,123.51,123.41,0.1]
[1720150942531,55.21196908,123.49,123.41,0.1]
[1720150942727,55.21196908,123.47,123.41,0.1]
[1720150942928,8.1015,123.44,123.41,0.1]
[1720150943128,0.17,123.43,123.41,0.1]
[1720150943736,0.17,123.44,123.41,0.1]
[1720150944386,8.2717,123.44,123.41,0.1]
[1720150944659,0.17,123.44,123.41,0.1]
[1720150944833,8.2716,123.44,123.41,0.1]
[1720150945558,0.17,123.44,123.41,0.1]
[1720150946149,0.17,123.45,123.41,0.1]
[1720150946374,8.27,123.46,123.41,0.1]
[1720150946533,0.17,123.46,123.41,0.1]
[1720150946739,8.1011,123.44,123.41,0.1]
[1720150946935,8.62702862,123.46,123.41,0.1]
[1720150947148,0.17,123.46,123.41,0.1]
[1720150947441,8.45713396,123.48,123.41,0.1]
[1720150947668,8.0978,123.49,123.41,0.1]
[1720150947963,15.0,123.55,123.42,6.0715]
[1720150947964,55.21196908,123.53,123.42,6.0715]
[1720150948166,8.0945,123.54,123.43,20.0]
[1720150948339,55.21196908,123.54,123.43,20.0]
[1720150948738,55.21196908,123.52,123.43,20.0]
[1720150948946,8.099,123.48,123.42,6.0715]
[1720150949159,55.21196908,123.48,123.41,0.1]
[1720150949755,8.1011,123.44,123.41,0.1]
[1720150949948,0.17,123.43,123.41,0.1]
[1720150950986,8.2719,123.43,123.41,0.1]
[1720150951149,8.2718,123.43,123.41,0.1]
[1720150951672,0.17,123.43,123.41,0.1]
[1720150952170,8.1024,123.42,123.41,0.1]
[1720150952361,63.48436908,123.42,123.41,0.1]
[1720150953377,0.17,123.42,123.41,0.1]
[1720150953563,55.21196908,123.46,123.41,0.1]
[1720150953765,8.1006,123.45,123.41,0.1]
[1720150953977,8.0996,123.47,123.41,0.1]
[1720150954280,8.0992,123.47,123.41,0.1]
[1720150954460,55.21196908,123.48,123.41,0.1]
[1720150954656,55.21196908,123.52,123.41,0.1]
[1720150954969,8.0973,123.5,123.41,0.1]
[1720150955168,55.21196908,123.52,123.41,0.1]
[1720150955169,8.0981,123.49,123.41,0.1]
[1720150955470,55.21196908,123.48,123.41,0.1]
[1720150955672,75.45206908,123.52,123.41,0.1]
[1720150955967,8.0985,123.48,123.41,0.1]
[1720150956176,75.45556908,123.5,123.41,0.1]
[1720150956475,8.1012,123.44,123.41,0.1]
[1720150956656,8.1006,123.45,123.41,0.1]
[1720150956855,55.21196908,123.49,123.41,0.1]
[1720150957167,0.17,123.48,123.41,0.1]
[1720150957366,8.0992,123.47,123.41,0.1]
[1720150957568,55.21196908,123.49,123.41,0.1]
[1720150957773,8.099,123.48,123.41,0.1]
[1720150957950,8.0979,123.49,123.41,0.1]
[1720150958355,8.101,123.45,123.41,0.1]
[1720150958968,8.2711,123.44,123.41,0.1]
[1720150959174,0.17,123.44,123.41,0.1]
[1720150959557,6.39532278,123.53,123.42,6.6007]
[1720150959761,8.0963,123.52,123.42,6.6007]
[1720150960082,8.4571024,123.54,123.43,20.0]
[1720150960255,8.0927,123.57,123.44,20.2517]
[1720150960454,8.0937,123.56,123.45,20.0]
[1720150960663,8.093,123.57,123.45,20.0]
[1720150960887,55.21196908,123.57,123.46,0.17]
[1720150961184,8.46329158,123.58,123.45,20.0]
[1720150961485,8.0942,123.55,123.45,20.0]
[1720150961689,63.67526066,123.58,123.42,14.7029]
[1720150961690,8.46329158,123.58,123.44,15.17]
[1720150961861,55.21196908,123.62,123.47,6.2585]
[1720150962178,55.21196908,123.57,123.48,20.0]
[1720150962472,55.21196908,123.56,123.48,20.0]
[1720150962880,8.0932,123.56,123.48,20.0]
[1720150963267,8.2641,123.55,123.48,20.0]
[1720150963468,8.0945,123.54,123.48,20.0]
[1720150963679,0.17,123.53,123.47,6.2585]
[1720150963879,117.47196908,123.6,123.47,6.2585]
[1720150964078,0.17,123.59,123.47,6.2585]
[1720150964289,55.21196908,123.58,123.47,6.2585]
[1720150964579,8.0933,123.56,123.47,6.2585]
[1720150964881,0.17,123.55,123.47,6.2585]
[1720150965086,0.17,123.55,123.48,20.0]
[1720150965292,0.17,123.56,123.48,20.0]
[1720150965584,0.17,123.57,123.48,20.0]
[1720150966079,8.2627,123.57,123.48,20.0]
[1720150966261,0.17,123.57,123.48,20.0]
[1720150966578,0.17,123.57,123.47,6.2585]
[1720150966579,55.21196908,123.56,123.47,6.2585]
[1720150966782,0.17,123.55,123.47,6.2585]
[1720150967079,63.30386908,123.59,123.48,20.0]
[1720150967264,8.0964,123.52,123.48,20.0]
[1720150967459,55.21196908,123.56,123.48,20.0]
[1720150967682,55.21196908,123.58,123.48,20.0]
[1720150967863,8.0919,123.58,123.48,20.0]
[1720150968068,8.0918,123.59,123.48,20.0]
[1720150968269,8.0934,123.56,123.48,20.0]
[1720150968475,0.17,123.55,123.48,20.0]
[1720150969410,8.2639,123.55,123.48,20.0]
[1720150969701,8.2639,123.55,123.47,6.2585]
[1720150969702,0.17,123.55,123.37,18.76108661]
[1720150969871,0.17,123.56,123.4,70.336]
[1720150970068,0.17,123.56,123.41,2.04444535]
[1720150970279,15.0,123.57,123.42,1.87429347]
[1720150970493,15.0,123.61,123.44,110.8]
[1720150970665,15.0,123.61,123.51,28.3361]
[1720150970980,15.0,123.67,123.53,20.2368]
[1720150971203,8.0874,123.65,123.54,0.17]
[1720150971489,23.0874,123.65,123.54,0.17]
[1720150971665,15.0,123.63,123.54,0.17]
[1720150971984,15.0,123.64,123.54,0.17]
[1720150972294,8.0874,123.65,123.54,0.17]
[1720150972587,16.44436389,123.64,123.55,6.5281]
[1720150972787,16.44436389,123.64,123.56,20.0]
[1720150972981,16.44296389,123.66,123.56,20.0]
[1720150973181,8.35636389,123.66,123.56,20.0]
[1720150974366,8.35636389,123.66,123.58,8.0913]
[1720150974559,8.55524782,123.69,123.59,40.2268]
[1720150974760,8.55524782,123.69,123.6,0.17]
[1720150974989,0.1,123.69,123.6,0.17]
[1720150975288,8.45636389,123.69,123.59,0.17]
[1720150975493,16.54156389,123.69,123.58,0.17]
[1720150975783,8.45636389,123.69,123.58,0.17]
[1720150975986,0.1,123.69,123.58,8.2618]
[1720150976168,0.1,123.69,123.59,20.0]
[1720150976369,0.1,123.69,123.6,0.17]
[1720150976567,8.45636389,123.69,123.6,0.17]
[1720150976765,0.1,123.69,123.6,8.2599]
[1720150976983,0.1,123.69,123.62,6.5493]
[1720150977182,0.1,123.69,123.63,20.0]
[1720150978289,0.1,123.69,123.64,0.17]
[1720150978668,0.1,123.69,123.63,20.0]
[1720150979085,0.1,123.69,123.64,0.17]
[1720150979282,0.1,123.69,123.63,20.0]
[1720150980189,0.1,123.69,123.62,6.5493]
[1720150980493,0.27,123.69,123.62,6.5493]
[1720150981015,0.27,123.69,123.52,342.7842]
[1720150981016,55.21196908,123.62,123.48,6.3901]
[1720150981170,8.35636389,123.61,123.49,0.34256275]
[1720150981370,8.35636389,123.59,123.49,0.34256275]
[1720150981681,8.52636389,123.61,123.48,33.1939133]
[1720150982098,8.35636389,123.63,123.48,12.9486133]
[1720150982404,8.35636389,123.65,123.56,20.233]
[1720150982696,8.35636389,123.67,123.56,28.3262]
[1720150982905,8.35636389,123.67,123.51,6.64363611]
[1720150982906,8.0879,123.65,123.52,8.0956]
[1720150983190,8.35636389,123.66,123.52,8.0957]
[1720150983191,8.35636389,123.62,123.52,8.0957]
[1720150983394,8.35636389,123.62,123.5,6.4642]
[1720150983395,63.56833297,123.62,123.5,6.4642]
[1720150983696,8.35636389,123.6,123.5,6.4642]
[1720150983880,0.17,123.59,123.5,6.4642]
[1720150984076,15.69770117,123.73,123.64,28.3078]
[1720150984310,14.02518254,124.15,124.09,8.0585]
[1720150984472,69.21983542,124.31,123.84,1.4548]
[1720150984473,40.08261359,124.62,124.21,112.55071425]
[1720150984774,6.0471,124.64,124.42,48.54]
[1720150984775,61.54547926,124.63,124.42,48.54]
[1720150985091,69.57097926,124.61,124.43,86.26551251]
[1720150985291,61.54547926,124.58,124.44,14.94486985]
[1720150985494,162.26,124.48,124.43,45.04461642]
[1720150985696,8.0392,124.39,124.38,67.63878139]
[1720150985896,15.7854,124.48,124.38,67.63878139]
[1720150986202,4.01671039,124.52,124.38,67.63878139]
[1720150986504,62.26,124.4,124.25,12.07767757]
[1720150986710,7.97346492,124.26,124.25,12.07767757]
[1720150987009,8.0493,124.24,124.13,20.0]
[1720150987303,8.0493,124.24,124.11,12.07767757]
[1720150987304,26.02304397,124.23,124.21,0.1]
[1720150987600,3.63141883,124.23,124.21,0.1]
[1720150987808,34.89123263,124.23,124.21,0.1]
[1720150988179,11.09474026,124.23,124.21,0.1]
[1720150988368,31.21864026,124.23,124.21,0.1]
[1720150988577,11.09474026,124.23,124.11,0.1]
[1720150988776,3.95458626,124.13,124.11,0.1]
[1720150989076,3.95839434,124.12,124.11,0.1]
[1720150989429,15.96497861,124.12,124.11,0.1]
[1720150989606,30.44832514,124.12,124.11,0.1]
[1720150989814,22.39162514,124.12,124.11,0.1]
[1720150990117,7.46332143,124.12,124.11,0.1]
[1720150990322,15.77315454,124.12,124.11,0.1]
[1720150990605,23.66331157,124.2,124.13,63.54]
[1720150990803,31.5427544,124.22,124.15,15.0]
[1720150991107,3.93128897,124.26,124.16,21.86312259]
[1720150991287,3.93071388,124.21,124.11,0.1]
[1720150991490,3.93071388,124.23,124.11,0.1]
[1720150991693,82.371,124.31,124.11,125.9]
[1720150992006,1.8522564,124.3,124.12,20.0]
[1720150992483,1.8522564,124.3,124.13,0.17]
[1720150992990,20.1159,124.28,124.13,0.17]
[1720150993194,1.85238075,124.27,124.11,15.1]
[1720150993379,8.0509,124.21,124.11,0.1]
[1720150993580,8.0504,124.22,124.11,0.1]
[1720150993789,8.0492,124.24,124.11,0.1]
[1720150994304,1.85238075,124.27,124.11,15.1]
[1720150994680,8.0509,124.21,124.11,0.1]
[1720150994876,1.85238075,124.27,124.11,0.1]
[1720150995071,8.0497,124.23,124.11,0.1]
[1720150995277,62.26,124.24,124.07,99.58415951]
[1720150995576,1.85238075,124.27,124.07,99.58415951]
[1720150995798,8.0513,124.21,124.07,99.58415951]
[1720150996010,0.17,124.2,124.07,99.58415951]
[1720150996417,8.051,124.21,124.07,99.58415951]
[1720150996607,1.85238075,124.27,124.07,99.58415951]
[1720150996825,0.17,124.26,124.07,99.58415951]
[1720150997433,8.0512,124.21,124.08,0.17]
[1720150997642,62.43,124.2,124.02,100.23743717]
[1720150997925,8.0562,124.13,124.02,100.23743717]
[1720150998305,0.17,124.12,124.01,22.41148141]
[1720150998723,8.2269,124.12,124.01,22.41148141]
[1720150999227,0.17,124.12,124.01,22.41148141]
[1720150999426,0.17,124.12,124.01,3.71705725]
[1720150999605,4.47495663,124.15,124.01,3.71705725]
[1720150999806,8.0564,124.13,124.01,3.71705725]
[1720151000117,8.0567,124.12,124.01,3.71705725]
[1720151000321,0.17,124.14,124.01,3.71705725]
[1720151000704,62.26,124.13,124.01,3.71705725]
[1720151000909,0.17,124.12,124.01,3.71705725]
[1720151001111,62.26,124.1,124.01,3.71705725]
[1720151001336,0.17,124.09,124.01,3.71705725]
[1720151001935,8.0608,124.06,124.01,3.71705725]
[1720151002235,0.17,124.07,124.01,3.71705725]
[1720151002430,8.0622,124.04,124.01,3.71705725]
[1720151002735,0.17,124.07,124.01,3.71705725]
[1720151003037,8.0624,124.04,124.01,3.71705725]
[1720151003334,8.0619,124.04,124.01,3.71705725]
[1720151003727,0.17,124.05,124.01,3.71705725]
[1720151004041,8.0632,124.02,124.01,3.71705725]
[1720151004207,8.0625,124.04,124.01,3.71705725]
[1720151004404,0.17,124.05,124.01,3.71705725]
[1720151004717,1.85262575,124.06,123.91,20.2759]
[1720151004929,0.17,124.05,123.91,20.2759]
[1720151005318,1.85262575,124.06,123.92,68.71]
[1720151005539,1.85262575,124.06,123.96,15.0]
[1720151005833,1.85262575,124.06,123.91,100.1]
[1720151005834,1.85262575,124.06,123.97,0.17]
[1720151006214,20.1456,124.1,123.97,0.17]
[1720151006417,8.0611,124.06,123.97,0.17]